bitfinex-derivatives/quotes_BTCF0:USTF0_20250325
["timestamp","ask_amount","ask_price","bid_price","bid_amount"]
[1742865422360,0.4752014,87401.0,87393.0,0.0971]
[1742865422564,0.47676141,87401.0,87393.0,0.0971]
[1742865422772,0.1144105,87394.0,87393.0,0.0971]
[1742865423065,0.22733051,87394.0,87393.0,0.1371]
[1742865423265,0.22733051,87394.0,87393.0,0.1047]
[1742865423568,0.22733051,87394.0,87380.0,0.0321]
[1742865423569,0.1144132,87392.0,87380.0,0.0321]
[1742865423769,0.1144276,87381.0,87380.0,0.0841]
[1742865424071,0.12727715,87381.0,87380.0,0.0641]
[1742865424457,0.12727715,87381.0,87380.0,0.032]
[1742865424458,0.48807715,87381.0,87380.0,0.032]
[1742865424655,0.48807715,87381.0,87375.0,0.00045779]
[1742865424656,0.0572163,87378.0,87375.0,0.00045779]
[1742865424861,0.1144341,87376.0,87375.0,0.00045779]
[1742865425074,0.11599411,87376.0,87375.0,0.00045779]
[1742865425371,0.17839411,87376.0,87375.0,0.00045779]
[1742865426567,0.18239411,87376.0,87375.0,0.00045779]
[1742865427064,0.1144551,87360.0,87359.0,0.03165788]
[1742865427270,0.47681511,87360.0,87359.0,0.15555788]
[1742865428669,0.47681511,87360.0,87359.0,0.27001428]
[1742865429467,0.47681511,87360.0,87359.0,0.15555788]
[1742865429773,0.47681511,87360.0,87359.0,0.27001428]
[1742865429962,0.47781511,87360.0,87359.0,0.27001428]
[1742865430362,0.47781511,87360.0,87359.0,0.15555788]
[1742865431272,0.47781511,87360.0,87359.0,0.27001428]
[1742865431464,0.36336001,87360.0,87359.0,0.27001428]
[1742865431665,0.00256001,87360.0,87359.0,0.27001428]
[1742865431865,0.001,87360.0,87359.0,0.27001428]
[1742865432271,0.00264001,87360.0,87359.0,0.27001428]
[1742865432768,0.001,87360.0,87359.0,0.27001428]
[1742865432965,0.00256001,87360.0,87359.0,0.27001428]
[1742865433473,0.001,87360.0,87359.0,0.27001428]
[1742865433672,0.00256001,87360.0,87359.0,0.27001428]
[1742865434067,0.001,87360.0,87359.0,0.27001428]
[1742865434767,0.001,87360.0,87359.0,0.63081428]
[1742865435968,0.001,87360.0,87359.0,0.51635788]
[1742865436168,0.00264001,87360.0,87359.0,0.51635788]
[1742865437575,0.00264001,87360.0,87359.0,0.15555788]
[1742865443677,0.00264001,87360.0,87359.0,0.51635788]
[1742865445076,0.00017165,87368.0,87359.0,0.53181763]
[1742865445275,0.00017165,87368.0,87360.0,0.01545975]
[1742865445472,0.00173166,87368.0,87361.0,0.01545975]
[1742865445777,0.00173166,87368.0,87367.0,0.3608]
[1742865445977,0.00017165,87368.0,87367.0,0.9008]
[1742865446881,0.00117165,87368.0,87367.0,0.9008]
[1742865447472,0.1442,87378.0,87367.0,0.9008]
[1742865447679,0.14580001,87378.0,87367.0,0.9008]
[1742865447870,0.002,87368.0,87367.0,0.9008]
[1742865448882,0.004,87368.0,87367.0,0.9008]
[1742865449385,0.002,87368.0,87367.0,0.9008]
[1742865449770,0.002,87368.0,87367.0,0.6208]
[1742865450181,0.004,87368.0,87367.0,0.6208]
[1742865450384,0.004,87368.0,87367.0,0.7108]
[1742865452075,0.004,87368.0,87367.0,0.8252459]
[1742865452875,0.4179996,87403.0,87391.0,0.1144145]
[1742865453075,0.48507842,87392.0,87391.0,0.1144145]
[1742865454286,0.49507842,87392.0,87391.0,0.1144145]
[1742865454976,0.50355209,87392.0,87391.0,0.1144145]
[1742865456082,0.39215209,87392.0,87391.0,0.1144145]
[1742865456280,0.38615209,87392.0,87391.0,0.1144145]
[1742865456485,0.38715209,87392.0,87391.0,0.1144145]
[1742865457381,0.02635209,87392.0,87391.0,0.1144145]
[1742865458984,0.02635209,87392.0,87387.0,0.3928]
[1742865459287,0.02635209,87392.0,87383.0,0.00017165]
[1742865459288,0.0633,87391.0,87383.0,0.00017165]
[1742865459489,0.1144177,87389.0,87383.0,0.00017165]
[1742865459691,0.0652,87388.0,87384.0,0.1144232]
[1742865459987,0.06676001,87388.0,87385.0,0.1144215]
[1742865460186,0.06676001,87388.0,87383.0,0.05738385]
[1742865460385,0.06676001,87388.0,87386.0,0.1144205]
[1742865460687,0.06676001,87388.0,87387.0,0.1144197]
[1742865461306,0.06676001,87388.0,87383.0,0.03317165]
[1742865461506,0.06676001,87388.0,87384.0,0.1144236]
[1742865461699,0.06676001,87388.0,87386.0,0.11442]
[1742865461897,0.06676001,87388.0,87387.0,0.1144197]
[1742865462095,0.07376001,87388.0,87387.0,0.1144197]
[1742865462604,0.06976001,87388.0,87386.0,0.2288405]
[1742865462807,0.07276001,87388.0,87386.0,0.11442]
[1742865463199,0.06976001,87388.0,87386.0,0.11442]
[1742865463399,0.07376001,87388.0,87386.0,0.2288398]
[1742865463595,0.07076001,87388.0,87386.0,0.2288398]
[1742865463807,0.06976001,87388.0,87386.0,0.2288398]
[1742865464013,0.07376001,87388.0,87383.0,0.00017165]
[1742865464306,0.07376001,87388.0,87383.0,0.11459605]
[1742865464699,0.07376001,87388.0,87383.0,0.14489605]
[1742865464899,0.07376001,87388.0,87384.0,0.1144234]
[1742865465306,0.07376001,87388.0,87384.0,0.1144232]
[1742865465501,0.06976001,87388.0,87383.0,0.03047165]
[1742865465701,0.07276001,87388.0,87385.0,0.1144213]
[1742865466099,0.06976001,87388.0,87385.0,0.1144213]
[1742865466300,0.07276001,87388.0,87385.0,0.1144213]
[1742865466494,0.07276001,87388.0,87387.0,0.1144197]
[1742865466697,0.18416001,87388.0,87387.0,0.1144197]
[1742865466893,0.18216001,87388.0,87387.0,0.1447197]
[1742865467100,0.18516001,87388.0,87387.0,0.1761197]
[1742865467410,0.18516001,87388.0,87387.0,0.0617]
[1742865467605,0.18516001,87388.0,87387.0,0.1761197]
[1742865469113,0.18116001,87388.0,87387.0,0.1761197]
[1742865469307,0.18516001,87388.0,87387.0,0.1761197]
[1742865473411,0.18516001,87388.0,87387.0,0.0617]
[1742865473610,0.29957841,87388.0,87387.0,0.0617]
[1742865474212,0.29957841,87388.0,87387.0,0.0303]
[1742865474715,0.39382574,87388.0,87387.0,0.0303]
[1742865474905,0.114421,87386.0,87385.0,0.1144216]
[1742865475103,0.11606101,87386.0,87385.0,0.1458216]
[1742865475408,0.18016101,87386.0,87385.0,0.1458216]
[1742865475811,0.18016101,87386.0,87385.0,0.1762216]
[1742865476016,0.18316101,87386.0,87385.0,0.1762216]
[1742865476603,0.18716101,87386.0,87385.0,0.1762216]
[1742865478812,0.28140834,87386.0,87385.0,0.1762216]
[1742865483414,0.18716101,87386.0,87385.0,0.1762216]
[1742865484213,0.1144236,87384.0,87383.0,0.00017165]
[1742865484520,0.1144472,87366.0,87360.0,0.0572273]
[1742865484722,0.11600721,87366.0,87365.0,0.08]
[1742865484914,0.14750721,87366.0,87365.0,0.08]
[1742865485927,0.20940721,87366.0,87365.0,0.1121]
[1742865486123,0.20940721,87366.0,87365.0,0.2265485]
[1742865486614,0.20940721,87366.0,87365.0,0.1432]
[1742865486816,0.20940721,87366.0,87365.0,0.2576485]
[1742865487028,0.22088289,87366.0,87365.0,0.1432]
[1742865487223,0.22088289,87366.0,87365.0,0.1131]
[1742865487627,0.22088289,87366.0,87365.0,0.2275485]
[1742865488527,0.22088289,87366.0,87365.0,0.1131]
[1742865488717,0.33224289,87366.0,87365.0,0.1131]
[1742865489225,0.33224289,87366.0,87365.0,0.081]
[1742865493027,0.33224289,87366.0,87357.0,0.00017165]
[1742865493028,0.1144577,87358.0,87357.0,0.00017165]
[1742865493228,0.47681771,87358.0,87357.0,0.00017165]
[1742865493730,0.53891771,87358.0,87357.0,0.00017165]
[1742865494229,0.53891771,87358.0,87357.0,0.00117165]
[1742865494730,0.42446001,87358.0,87357.0,0.00117165]
[1742865495035,0.53891771,87358.0,87357.0,0.00117165]
[1742865497627,0.53891771,87358.0,87357.0,0.03247165]
[1742865498025,0.53891771,87358.0,87357.0,0.14693065]
[1742865498219,0.53891771,87358.0,87357.0,0.06407165]
[1742865498429,0.53891771,87358.0,87357.0,0.00117165]
[1742865501625,0.65031771,87358.0,87357.0,0.00117165]
[1742865504528,0.65231771,87358.0,87357.0,0.00017165]
[1742865504726,0.65331771,87358.0,87357.0,0.00017165]
[1742865516148,0.71081092,87358.0,87332.0,0.0572452]
[1742865516341,0.4752932,87333.0,87332.0,0.2717328]
[1742865516645,0.58825321,87333.0,87332.0,0.2717328]
[1742865516947,0.48524748,87333.0,87332.0,0.2717328]
[1742865518034,0.48524748,87333.0,87332.0,0.3349328]
[1742865518235,0.48524748,87333.0,87332.0,0.3389328]
[1742865518445,0.01304748,87333.0,87332.0,0.3429328]
[1742865518943,0.12753798,87333.0,87332.0,0.1712]
[1742865519139,0.12753798,87333.0,87332.0,0.2856918]
[1742865519536,0.01304748,87333.0,87332.0,0.2856918]
[1742865519950,0.12753798,87333.0,87332.0,0.2856918]
[1742865521250,0.12753798,87333.0,87332.0,0.2836918]
[1742865521552,0.12753798,87333.0,87332.0,0.2826918]
[1742865521941,0.00156001,87333.0,87332.0,0.2826918]
[1742865522142,0.1114,87334.0,87333.0,0.1144905]
[1742865522350,0.1114,87334.0,87333.0,0.4269905]
[1742865522539,0.11296001,87334.0,87333.0,0.4269905]
[1742865522953,0.22744911,87334.0,87333.0,0.5369905]
[1742865523253,0.11604911,87334.0,87333.0,0.4269905]
[1742865523448,0.1144891,87334.0,87333.0,0.4269905]
[1742865523654,0.11612911,87334.0,87333.0,0.4269905]
[1742865524641,0.11912911,87334.0,87333.0,0.4269905]
[1742865525247,0.00464001,87334.0,87333.0,0.5269905]
[1742865525447,0.003,87334.0,87333.0,0.5269905]
[1742865525745,0.003,87334.0,87333.0,0.4269905]
[1742865525943,0.00456001,87334.0,87333.0,0.4269905]
[1742865528546,0.00450949,87334.0,87333.0,0.4269905]
[1742865529457,0.00294948,87334.0,87333.0,0.4269905]
[1742865529643,0.00450949,87334.0,87333.0,0.4269905]
[1742865529842,0.00294948,87334.0,87333.0,0.4269905]
[1742865530452,0.00450949,87334.0,87333.0,0.4269905]
[1742865532356,0.03544948,87334.0,87333.0,0.4269905]
[1742865532549,0.03700949,87334.0,87333.0,0.4269905]
[1742865533158,0.00450949,87334.0,87333.0,0.4269905]
[1742865533354,0.00294948,87334.0,87333.0,0.4269905]
[1742865533858,0.03294948,87334.0,87333.0,0.4269905]
[1742865534368,0.03458949,87334.0,87333.0,0.4269905]
[1742865535464,0.14907859,87334.0,87333.0,0.25]
[1742865535758,0.09588949,87334.0,87333.0,0.3644905]
[1742865535960,0.06528949,87334.0,87333.0,0.3644905]
[1742865536162,0.03458949,87334.0,87333.0,0.4295905]
[1742865536355,0.14434948,87334.0,87333.0,0.4295905]
[1742865536558,0.14590949,87334.0,87333.0,0.5295905]
[1742865536760,0.03450949,87334.0,87333.0,0.5295905]
[1742865537058,0.00294948,87334.0,87333.0,0.5295905]
[1742865538153,0.00017176,87341.0,87339.0,0.1144826]
[1742865538459,0.00017176,87341.0,87340.0,0.2098813]
[1742865538661,0.00017176,87341.0,87340.0,0.5598813]
[1742865539255,0.00017176,87341.0,87340.0,0.4598813]
[1742865539562,0.00317176,87341.0,87340.0,0.5698813]
[1742865539762,0.00517176,87341.0,87340.0,0.4598813]
[1742865540063,0.00517176,87341.0,87340.0,0.5598813]
[1742865541758,0.00217176,87341.0,87340.0,0.5598813]
[1742865542662,0.00217176,87341.0,87340.0,0.4598813]
[1742865545664,0.09713198,87341.0,87340.0,0.4598813]
[1742865546157,0.09869199,87341.0,87340.0,0.4598813]
[1742865550162,0.09869199,87341.0,87340.0,0.2098813]
[1742865551363,0.00373177,87341.0,87340.0,0.2098813]
[1742865551565,0.00217176,87341.0,87340.0,0.2098813]
[1742865551862,0.00373177,87341.0,87328.0,0.4198]
[1742865552064,0.0662,87340.0,87338.0,0.1144835]
[1742865552254,0.1114,87339.0,87334.0,0.0572442]
[1742865552458,0.1144878,87335.0,87334.0,0.02]
[1742865552661,0.11604781,87335.0,87334.0,0.02]
[1742865552868,0.18234781,87335.0,87334.0,0.02]
[1742865553856,0.1144898,87334.0,87327.0,0.00045805]
[1742865554070,0.11604961,87334.0,87330.0,0.1144935]
[1742865554362,0.0331,87333.0,87330.0,0.1344933]
[1742865554576,0.03466001,87333.0,87330.0,0.02]
[1742865554761,0.03466001,87333.0,87331.0,0.1144927]
[1742865554957,0.1144918,87332.0,87331.0,0.02]
[1742865555161,0.11605181,87332.0,87331.0,0.02]
[1742865555463,0.00156001,87332.0,87331.0,0.02]
[1742865555656,0.03346001,87332.0,87331.0,0.02]
[1742865556063,0.14795181,87332.0,87331.0,0.02]
[1742865557161,0.17945181,87332.0,87331.0,0.02]
[1742865557360,0.18045181,87332.0,87331.0,0.02]
[1742865559962,0.29201181,87332.0,87331.0,0.02]
[1742865560669,0.114497,87328.0,87327.0,0.00045805]
[1742865560872,0.47693701,87328.0,87327.0,0.04045805]
[1742865561368,0.42454001,87328.0,87327.0,0.04045805]
[1742865562265,0.42454001,87328.0,87327.0,0.00045805]
[1742865562266,0.53903701,87328.0,87327.0,0.00045805]
[1742865563169,0.53903701,87328.0,87327.0,0.00145805]
[1742865563372,0.56024137,87328.0,87327.0,0.00145805]
[1742865563760,0.44574437,87328.0,87315.0,0.1145139]
[1742865563964,0.4753117,87317.0,87312.0,0.0572584]
[1742865564265,0.20946,87316.0,87312.0,0.02]
[1742865564463,0.26827641,87316.0,87312.0,0.1345173]
[1742865564673,0.0110169,87315.0,87312.0,0.1345173]
[1742865564871,0.01257691,87315.0,87312.0,0.1345173]
[1742865565071,0.0632,87314.0,87312.0,0.1345173]
[1742865565367,0.06484001,87314.0,87312.0,0.1345173]
[1742865565579,0.06484001,87314.0,87313.0,0.1145167]
[1742865565769,0.07594801,87314.0,87313.0,0.1145167]
[1742865566167,0.08748959,87314.0,87313.0,0.1779167]
[1742865568567,0.08748959,87314.0,87313.0,0.1799167]
[1742865569066,0.08748959,87314.0,87313.0,0.1819167]
[1742865570778,0.08748959,87314.0,87313.0,0.2819167]
[1742865571773,0.08748959,87314.0,87313.0,0.1819167]
[1742865576873,0.08748959,87314.0,87313.0,0.1779167]
[1742865577074,0.08848959,87314.0,87313.0,0.1779167]
[1742865577382,0.08848959,87314.0,87313.0,0.2779167]
[1742865578084,0.08848959,87314.0,87313.0,0.1779167]
[1742865580384,0.19992959,87314.0,87313.0,0.1779167]
[1742865582275,0.31444499,87314.0,87313.0,0.0634]
[1742865583676,0.19992959,87314.0,87313.0,0.0634]
[1742865584177,0.31444499,87314.0,87313.0,0.0634]
[1742865585582,0.20300499,87314.0,87313.0,0.0634]
[1742865585784,0.31444499,87314.0,87313.0,0.0634]
[1742865586485,0.13980499,87314.0,87313.0,0.0634]
[1742865586672,0.25124499,87314.0,87313.0,0.1734]
[1742865587682,0.13980499,87314.0,87313.0,0.1734]
[1742865587878,0.25124499,87314.0,87313.0,0.1734]
[1742865589075,0.28164499,87314.0,87313.0,0.1734]
[1742865589784,0.31424499,87314.0,87313.0,0.1734]
[1742865589979,0.25124499,87314.0,87313.0,0.1734]
[1742865590782,0.28434499,87314.0,87313.0,0.1734]
[1742865590984,0.31694499,87314.0,87313.0,0.1734]
[1742865592383,0.31694499,87314.0,87313.0,0.0634]
[1742865592780,0.31694499,87314.0,87313.0,0.1734]
[1742865597290,0.01418159,87314.0,87313.0,0.5379167]
[1742865599093,0.01418159,87314.0,87313.0,0.4234]
[1742865599297,0.12869699,87314.0,87313.0,0.4234]
[1742865599690,0.12869699,87314.0,87313.0,0.0634]
[1742865599889,0.19079699,87314.0,87313.0,0.0634]
[1742865600089,0.19079699,87314.0,87313.0,0.1534]
[1742865602602,0.19079699,87314.0,87313.0,0.0634]
[1742865603806,0.22159699,87314.0,87313.0,0.0634]
[1742865604494,0.114518,87312.0,87311.0,0.00045813]
[1742865604703,0.11607801,87312.0,87311.0,0.02045813]
[1742865604904,0.17927801,87312.0,87311.0,0.02045813]
[1742865605204,0.19291837,87312.0,87311.0,0.02045813]
[1742865608205,0.19291837,87312.0,87311.0,0.14045813]
[1742865610404,0.12971837,87312.0,87311.0,0.48497743]
[1742865610601,0.01520037,87312.0,87311.0,0.48497743]
[1742865610799,0.01520037,87312.0,87311.0,0.58127743]
[1742865611108,0.12971837,87312.0,87311.0,0.58127743]
[1742865611310,0.01520037,87312.0,87311.0,0.59263228]
[1742865611505,0.12971837,87312.0,87311.0,0.09675813]
[1742865611807,0.01520037,87312.0,87311.0,0.76127743]
[1742865612500,0.12971837,87312.0,87311.0,0.64675813]
[1742865612700,0.12971837,87312.0,87311.0,0.37675813]
[1742865612906,0.01520037,87312.0,87311.0,0.60675813]
[1742865613105,0.01520037,87312.0,87311.0,0.72127743]
[1742865613708,0.01520037,87312.0,87311.0,0.73237978]
[1742865615016,0.1145067,87321.0,87318.0,0.1145093]
[1742865615205,0.00108001,87321.0,87319.0,0.0641]
[1742865615406,0.00108001,87321.0,87319.0,0.5547]
[1742865615606,0.0328,87322.0,87319.0,0.5547]
[1742865615806,0.03392001,87322.0,87319.0,0.5547]
[1742865616101,0.4753075,87320.0,87319.0,0.0647]
[1742865616296,0.47638751,87320.0,87319.0,0.0641]
[1742865616607,0.55352131,87320.0,87319.0,0.0641]
[1742865618407,0.55452131,87320.0,87319.0,0.0641]
[1742865618707,0.55652131,87320.0,87319.0,0.0641]
[1742865620611,0.66166567,87320.0,87319.0,0.0641]
[1742865621217,0.114518,87312.0,87311.0,0.00045813]
[1742865621517,0.11559801,87312.0,87311.0,0.28045813]
[1742865621716,0.17719801,87312.0,87311.0,0.28109813]
[1742865621912,0.17719801,87312.0,87311.0,0.34249813]
[1742865623219,0.1145324,87301.0,87300.0,0.1]
[1742865623405,0.1158124,87301.0,87300.0,0.16128]
[1742865623610,0.1158124,87301.0,87300.0,0.1]
[1742865623917,0.114539,87296.0,87286.0,0.4198]
[1742865624219,0.115819,87296.0,87295.0,0.00105821]
[1742865624610,0.176719,87296.0,87295.0,0.00105821]
[1742865624805,0.19351271,87296.0,87295.0,0.00105821]
[1742865625017,0.19351271,87296.0,87295.0,0.10105821]
[1742865625217,0.19351271,87296.0,87295.0,0.00105821]
[1742865625425,0.19351271,87296.0,87295.0,0.00505821]
[1742865625723,0.19351271,87296.0,87295.0,0.27505821]
[1742865626221,0.19351271,87296.0,87295.0,0.27905821]
[1742865626420,0.19351271,87296.0,87295.0,0.00905821]
[1742865628017,0.19351271,87296.0,87295.0,0.26905821]
[1742865629523,0.19351271,87296.0,87295.0,0.33085821]
[1742865630030,0.19351271,87296.0,87295.0,0.32285821]
[1742865630608,0.19451271,87296.0,87295.0,0.32285821]
[1742865631919,0.19451271,87296.0,87295.0,0.06285821]
[1742865632820,0.19551271,87296.0,87295.0,0.06285821]
[1742865633416,0.19551271,87296.0,87295.0,0.25285821]
[1742865635421,0.19451271,87296.0,87295.0,0.25285821]
[1742865635621,0.19551271,87296.0,87295.0,0.25285821]
[1742865636330,0.19551271,87296.0,87295.0,0.26285821]
[1742865639426,0.19651271,87296.0,87295.0,0.26285821]
[1742865640031,0.08197371,87296.0,87295.0,0.26285821]
[1742865640332,0.02107371,87296.0,87295.0,0.73819851]
[1742865640633,0.01979371,87296.0,87295.0,0.73819851]
[1742865641731,0.01979371,87296.0,87295.0,0.74976357]
[1742865642931,0.02107371,87296.0,87295.0,0.74976357]
[1742865643434,0.01979371,87296.0,87295.0,0.74976357]
[1742865643622,0.02107371,87296.0,87295.0,0.74976357]
[1742865643935,0.01979371,87296.0,87295.0,0.74976357]
[1742865644132,0.02115371,87296.0,87295.0,0.74976357]
[1742865644332,0.01979371,87296.0,87295.0,0.74976357]
[1742865646328,0.02115371,87296.0,87295.0,0.74976357]
[1742865646637,0.01979371,87296.0,87295.0,0.74976357]
[1742865647737,0.02115371,87296.0,87295.0,0.74976357]
[1742865648134,0.01979371,87296.0,87295.0,0.74976357]
[1742865648336,0.02115371,87296.0,87295.0,0.74976357]
[1742865648540,0.01979371,87296.0,87295.0,0.74976357]
[1742865648838,0.02107371,87296.0,87295.0,0.74976357]
[1742865649435,0.01979371,87296.0,87295.0,0.74976357]
[1742865650035,0.02107371,87296.0,87295.0,0.74976357]
[1742865650440,0.01979371,87296.0,87295.0,0.74976357]
[1742865650641,0.02111371,87296.0,87295.0,0.74976357]
[1742865651033,0.01979371,87296.0,87295.0,0.74976357]
[1742865651232,0.02111371,87296.0,87295.0,0.74976357]
[1742865652240,0.01979371,87296.0,87295.0,0.74976357]
[1742865652634,0.02107371,87296.0,87295.0,0.74976357]
[1742865652940,0.05279371,87296.0,87295.0,0.74976357]
[1742865653144,0.05411371,87296.0,87295.0,0.74976357]
[1742865653631,0.08549371,87296.0,87295.0,0.74976357]
[1742865653825,0.20135271,87296.0,87295.0,0.74976357]
[1742865654031,0.08681371,87296.0,87295.0,0.74976357]
[1742865654541,0.20135271,87296.0,87295.0,0.74976357]
[1742865655537,0.08681371,87296.0,87295.0,0.74976357]
[1742865655737,0.08549371,87296.0,87295.0,0.74976357]
[1742865656139,0.20131271,87296.0,87295.0,0.74976357]
[1742865656333,0.08677371,87296.0,87295.0,0.74976357]
[1742865656838,0.08549371,87296.0,87295.0,0.74976357]
[1742865657535,0.20003271,87296.0,87295.0,0.74976357]
[1742865657741,0.20131271,87296.0,87295.0,0.74976357]
[1742865658436,0.20131271,87296.0,87295.0,0.62365821]
[1742865659543,0.20131271,87296.0,87295.0,0.26285821]
[1742865659743,0.20131271,87296.0,87295.0,0.62365821]
[1742865660035,0.20131271,87296.0,87295.0,0.37739851]
[1742865660244,0.08677371,87296.0,87295.0,0.37739851]
[1742865660435,0.08677371,87296.0,87295.0,0.74974782]
[1742865661232,0.08549371,87296.0,87295.0,0.74974782]
[1742865661542,0.20003271,87296.0,87295.0,0.26285821]
[1742865661739,0.20131271,87296.0,87295.0,0.26285821]
[1742865662741,0.20131271,87296.0,87295.0,0.37739851]
[1742865663141,0.20131271,87296.0,87295.0,0.26285821]
[1742865664540,0.20131271,87296.0,87295.0,0.37739851]
[1742865665838,0.08677371,87296.0,87295.0,0.37739851]
[1742865666035,0.20131271,87296.0,87295.0,0.37739851]
[1742865669440,0.08677371,87296.0,87295.0,0.37739851]
[1742865669845,0.01136779,87313.0,87298.0,0.0572681]
[1742865670053,0.0304,87312.0,87311.0,0.1145193]
[1742865670245,0.144918,87312.0,87311.0,0.5851993]
[1742865670441,0.14579801,87312.0,87311.0,0.5851993]
[1742865670643,0.17799801,87312.0,87311.0,0.6503993]
[1742865672455,0.17799801,87312.0,87311.0,0.53588]
[1742865672654,0.21429801,87312.0,87311.0,0.53588]
[1742865672854,0.21429801,87312.0,87311.0,0.6503993]
[1742865673056,0.21429801,87312.0,87311.0,0.53588]
[1742865674550,0.21429801,87312.0,87311.0,0.47068]
[1742865674848,0.57509801,87312.0,87311.0,0.47068]
[1742865675048,0.57509801,87312.0,87303.0,0.00017176]
[1742865675049,0.1145272,87305.0,87303.0,0.00017176]
[1742865675256,0.1475285,87304.0,87303.0,0.00017176]
[1742865675450,0.1486885,87304.0,87303.0,0.03247176]
[1742865675653,0.1486885,87304.0,87303.0,0.06267176]
[1742865676658,0.1486885,87304.0,87303.0,0.06207176]
[1742865677059,0.1496885,87304.0,87303.0,0.06267176]
[1742865677260,0.1496885,87304.0,87303.0,0.16267176]
[1742865677652,0.1496885,87304.0,87303.0,0.06267176]
[1742865678462,0.1832885,87304.0,87303.0,0.06267176]
[1742865679358,0.28291899,87304.0,87303.0,0.06267176]
[1742865679665,0.28291899,87304.0,87303.0,0.03247176]
[1742865679863,0.28291899,87304.0,87303.0,0.03187176]
[1742865681151,0.28291899,87304.0,87303.0,0.03251176]
[1742865683449,0.28291899,87304.0,87303.0,0.03187176]
[1742865683868,0.28291899,87304.0,87303.0,0.05187176]
[1742865685168,0.1832885,87304.0,87303.0,0.05187176]
[1742865685856,0.1832885,87304.0,87303.0,0.05247176]
[1742865687258,0.1832885,87304.0,87303.0,0.08387176]
[1742865687561,0.1832885,87304.0,87303.0,0.08447176]
[1742865688857,0.1526885,87304.0,87303.0,0.08447176]
[1742865690565,0.1526885,87304.0,87303.0,0.08387176]
[1742865690965,0.1526885,87304.0,87303.0,0.08447176]
[1742865691766,0.1526885,87304.0,87303.0,0.08387176]
[1742865691960,0.1526885,87304.0,87303.0,0.08447176]
[1742865692555,0.1856885,87304.0,87303.0,0.08447176]
[1742865697971,0.1526885,87304.0,87303.0,0.08447176]
[1742865699075,0.1526885,87304.0,87303.0,0.05247176]
[1742865699371,0.1846885,87304.0,87303.0,0.05187176]
[1742865700670,0.2156885,87304.0,87303.0,0.05187176]
[1742865701366,0.2156885,87304.0,87303.0,0.05247176]
[1742865701773,0.2156885,87304.0,87303.0,0.05187176]
[1742865701976,0.2156885,87304.0,87303.0,0.05251176]
[1742865703470,0.1846885,87304.0,87303.0,0.05251176]
[1742865703971,0.1526885,87304.0,87303.0,0.05187176]
[1742865704173,0.1526885,87304.0,87303.0,0.05247176]
[1742865704474,0.00516,87304.0,87303.0,0.25700156]
[1742865704672,0.2034713,87316.0,87315.0,0.1145141]
[1742865704873,0.2042313,87316.0,87315.0,0.1]
[1742865705079,0.2042313,87316.0,87315.0,0.1008]
[1742865705264,0.2042313,87316.0,87315.0,0.2153141]
[1742865705571,0.1152728,87316.0,87315.0,0.4853141]
[1742865705768,0.00176,87316.0,87315.0,0.4851141]
[1742865705976,0.0572527,87322.0,87315.0,0.4851141]
[1742865705977,0.27246936,87325.0,87319.0,0.1145088]
[1742865706168,0.30774314,87331.0,87330.0,0.1144944]
[1742865706368,0.30774314,87331.0,87330.0,0.9752944]
[1742865706671,0.30838314,87331.0,87330.0,1.0874144]
[1742865706864,0.42287624,87331.0,87330.0,0.9766544]
[1742865707066,0.30838314,87331.0,87330.0,0.9759344]
[1742865708777,0.42287624,87331.0,87330.0,0.9759344]
[1742865709078,0.30938314,87331.0,87330.0,0.9759344]
[1742865709670,0.00164,87331.0,87330.0,0.9759344]
[1742865709869,0.001,87331.0,87330.0,0.9759344]
[1742865713466,0.0004,87336.0,87335.0,0.1144878]
[1742865713673,0.0004,87336.0,87335.0,0.5951278]
[1742865714172,0.00017176,87339.0,87338.0,0.1144839]
[1742865714371,0.1148656,87352.0,87351.0,0.1144669]
[1742865714570,0.15909756,87352.0,87351.0,0.5651069]
[1742865714776,0.04463196,87352.0,87351.0,0.5651069]
[1742865714980,0.01233196,87352.0,87351.0,0.5651069]
[1742865715582,0.00104,87352.0,87351.0,0.5651069]
[1742865716077,0.03347176,87360.0,87359.0,0.1144564]
[1742865716269,0.03347176,87360.0,87359.0,0.6250964]
[1742865716270,0.00017176,87360.0,87359.0,0.6250964]
[1742865717067,0.00017176,87360.0,87359.0,0.3850964]
[1742865717282,0.00089176,87360.0,87359.0,0.3850964]
[1742865717475,0.00017176,87360.0,87359.0,0.3850964]
[1742865717979,0.00081176,87360.0,87359.0,0.27064]
[1742865718173,0.00317176,87360.0,87359.0,0.3850964]
[1742865718369,0.06831176,87360.0,87359.0,0.3850964]
[1742865720478,0.06767176,87360.0,87359.0,0.3850964]
[1742865720676,0.06831176,87360.0,87359.0,0.3850964]
[1742865720871,0.06831176,87360.0,87359.0,0.4173964]
[1742865721380,0.11172,87384.0,87375.0,0.0572174]
[1742865721678,0.0572131,87382.0,87376.0,0.0323]
[1742865721873,0.1144328,87377.0,87376.0,0.25298]
[1742865722075,0.12628814,87377.0,87376.0,0.03298]
[1742865722274,0.12628814,87377.0,87376.0,0.0323]
[1742865722469,0.37265534,87377.0,87368.0,0.00017176]
[1742865722673,0.1144433,87369.0,87368.0,0.00085176]
[1742865722882,0.1151233,87369.0,87368.0,0.00085176]
[1742865723182,0.1782233,87369.0,87368.0,0.00085176]
[1742865723382,0.2090233,87369.0,87368.0,0.00085176]
[1742865724679,0.5698233,87369.0,87368.0,0.00085176]
[1742865725484,0.5698233,87369.0,87368.0,0.00017176]
[1742865739695,0.5698233,87369.0,87368.0,0.00089176]
[1742865740188,0.5698233,87369.0,87368.0,0.00017176]
[1742865740893,0.5698233,87369.0,87368.0,0.00081176]
[1742865741095,0.5698233,87369.0,87368.0,0.00017176]
[1742865743089,0.59177279,87369.0,87368.0,0.00017176]
[1742865744580,0.45538,87369.0,87348.0,0.057235]
[1742865744787,0.1144629,87355.0,87354.0,0.1144595]
[1742865744986,0.1144629,87355.0,87354.0,0.2051395]
[1742865745187,0.1479029,87355.0,87354.0,0.2051395]
[1742865745886,0.2099029,87355.0,87354.0,0.2694395]
[1742865746297,0.22144467,87355.0,87354.0,0.2694395]
[1742865749295,0.22144467,87355.0,87354.0,0.12498]
[1742865749501,0.1144721,87347.0,87346.0,0.00017176]
[1742865749694,0.1144721,87347.0,87346.0,0.16077176]
[1742865749993,0.1810321,87347.0,87346.0,0.16077176]
[1742865750200,0.1802721,87347.0,87346.0,0.16017176]
[1742865751598,0.1802721,87347.0,87346.0,0.27464516]
[1742865752595,0.1802721,87347.0,87346.0,0.16017176]
[1742865753004,0.1802721,87347.0,87346.0,0.33554516]
[1742865754397,0.1802721,87347.0,87346.0,0.22107176]
[1742865754803,0.1802721,87347.0,87346.0,0.33554516]
[1742865755003,0.1810321,87347.0,87346.0,0.43618516]
[1742865755599,0.1810321,87347.0,87346.0,0.16081176]
[1742865755802,0.1810321,87347.0,87346.0,0.16017176]
[1742865756292,0.1810321,87347.0,87346.0,0.16077176]
[1742865757897,0.1810321,87347.0,87346.0,0.22227176]